[Event "Late-Titled-Tuesday-Blitz-July-09-2024"]
[Site "Chess.com"]
[Date "2024.07.09"]
[Round "4"]
[White "champ2005"]
[Black "tjallkompall"]
[Result "1-0"]
[WhiteElo "3041"]
[BlackElo "2785"]
[TimeControl "180+1"]
[EndTime "14:39:45 PDT"]
[Termination "champ2005 won on time"]

1. d4 {[%clk 0:03:00.9]} 1... Nf6 {[%clk 0:02:59.5]} 2. Nf3 {[%clk 0:03:01.3]}
2... c5 {[%clk 0:02:59.5]} 3. d5 {[%clk 0:03:01.1]} 3... b5 {[%clk 0:03:00.1]}
4. e4 {[%clk 0:03:01.4]} 4... Nxe4 {[%clk 0:02:58.5]} 5. Bd3 {[%clk 0:03:01.7]}
5... Nf6 {[%clk 0:02:57.1]} 6. Bxb5 {[%clk 0:03:00.3]} 6... g6 {[%clk
0:02:51.5]} 7. O-O {[%clk 0:02:59.3]} 7... Bg7 {[%clk 0:02:52]} 8. c4 {[%clk
0:02:58.9]} 8... O-O {[%clk 0:02:52.3]} 9. Nc3 {[%clk 0:02:58.5]} 9... d6 {[%clk
0:02:51.4]} 10. h3 {[%clk 0:02:57.5]} 10... Nbd7 {[%clk 0:02:48.7]} 11. Re1
{[%clk 0:02:56.5]} 11... Nb6 {[%clk 0:02:48.9]} 12. Qe2 {[%clk 0:02:55.5]} 12...
e6 {[%clk 0:02:48]} 13. Bc6 {[%clk 0:02:55.3]} 13... Rb8 {[%clk 0:02:47.3]} 14.
Bf4 {[%clk 0:02:55.1]} 14... exd5 {[%clk 0:02:46.9]} 15. cxd5 {[%clk 0:02:56]}
15... Bb7 {[%clk 0:02:38.1]} 16. Rad1 {[%clk 0:02:56.1]} 16... a6 {[%clk
0:02:14.1]} 17. Bxb7 {[%clk 0:02:54.5]} 17... Rxb7 {[%clk 0:02:14.4]} 18. Qxa6
{[%clk 0:02:54.8]} 18... Qa8 {[%clk 0:01:43.4]} 19. Qd3 {[%clk 0:02:41.2]} 19...
Rd8 {[%clk 0:01:30.1]} 20. b3 {[%clk 0:02:35]} 20... Qa5 {[%clk 0:01:13.5]} 21.
Bd2 {[%clk 0:02:27.7]} 21... c4 {[%clk 0:01:13.7]} 22. bxc4 {[%clk 0:02:26.5]}
22... Qc5 {[%clk 0:01:14.4]} 23. Rb1 {[%clk 0:02:25.7]} 23... Rdb8 {[%clk
0:01:11.8]} 24. Ne4 {[%clk 0:01:53.2]} 24... Qxc4 {[%clk 0:01:12.1]} 25. Qxc4
{[%clk 0:01:51.9]} 25... Nxc4 {[%clk 0:01:13]} 26. Rxb7 {[%clk 0:01:52]} 26...
Rxb7 {[%clk 0:01:12.6]} 27. Nxf6+ {[%clk 0:01:52.9]} 27... Bxf6 {[%clk 0:01:13]}
28. Bh6 {[%clk 0:01:53.8]} 28... Ne5 {[%clk 0:00:55.7]} 29. Nxe5 {[%clk
0:01:45.8]} 29... Bxe5 {[%clk 0:00:56.6]} 30. f4 {[%clk 0:01:42.3]} 30... Bd4+
{[%clk 0:00:56.6]} 31. Kh2 {[%clk 0:01:42.8]} 31... f5 {[%clk 0:00:51.8]} 32.
Re6 {[%clk 0:01:35.8]} 32... Rd7 {[%clk 0:00:44.8]} 33. Bg5 {[%clk 0:01:30.3]}
33... Kf7 {[%clk 0:00:43.8]} 34. a4 {[%clk 0:01:30.1]} 34... Bc5 {[%clk
0:00:38.8]} 35. g4 {[%clk 0:01:26.5]} 35... Ra7 {[%clk 0:00:30.6]} 36. Kg3
{[%clk 0:01:03.9]} 36... Rxa4 {[%clk 0:00:30]} 37. Re7+ {[%clk 0:01:03.9]} 37...
Kg8 {[%clk 0:00:30.3]} 38. Bh6 {[%clk 0:01:01.4]} 38... Ra7 {[%clk 0:00:29.2]}
39. Re8+ {[%clk 0:00:59.4]} 39... Kf7 {[%clk 0:00:29.2]} 40. Rh8 {[%clk
0:00:58.6]} 40... Ra3+ {[%clk 0:00:23.8]} 41. Kh4 {[%clk 0:00:56.8]} 41... Bf2+
{[%clk 0:00:22.2]} 42. Kg5 {[%clk 0:00:57.2]} 42... Rxh3 {[%clk 0:00:22.8]} 43.
Rxh7+ {[%clk 0:00:57.7]} 43... Ke8 {[%clk 0:00:20.7]} 44. Rh8+ {[%clk
0:00:56.3]} 44... Kd7 {[%clk 0:00:20.2]} 45. gxf5 {[%clk 0:00:53.6]} 45... gxf5
{[%clk 0:00:20.5]} 46. Kxf5 {[%clk 0:00:54.5]} 46... Rd3 {[%clk 0:00:17.7]} 47.
Rh7+ {[%clk 0:00:54.7]} 47... Kc8 {[%clk 0:00:17.6]} 48. Ke6 {[%clk 0:00:55.3]}
48... Bc5 {[%clk 0:00:16.1]} 49. f5 {[%clk 0:00:55.4]} 49... Rd1 {[%clk
0:00:12.7]} 50. f6 {[%clk 0:00:54.2]} 50... Re1+ {[%clk 0:00:13.3]} 51. Kf5
{[%clk 0:00:52.5]} 51... Rf1+ {[%clk 0:00:12.9]} 52. Kg6 {[%clk 0:00:52.3]}
52... Rg1+ {[%clk 0:00:13.2]} 53. Bg5 {[%clk 0:00:50.9]} 53... Be3 {[%clk
0:00:12.1]} 54. Rh5 {[%clk 0:00:51.3]} 54... Kd7 {[%clk 0:00:10.2]} 55. Kh6
{[%clk 0:00:50]} 55... Rxg5 {[%clk 0:00:06.3]} 56. Rxg5 {[%clk 0:00:50.9]} 56...
Ke8 {[%clk 0:00:06.7]} 57. Kg6 {[%clk 0:00:51.3]} 57... Bxg5 {[%clk 0:00:06]}
58. Kxg5 {[%clk 0:00:52.2]} 58... Kf8 {[%clk 0:00:06.3]} 59. Kg4 {[%clk
0:00:34.8]} 59... Kg8 {[%clk 0:00:06.9]} 60. Kh5 {[%clk 0:00:35.4]} 60... Kf8
{[%clk 0:00:04.5]} 61. Kh6 {[%clk 0:00:32.6]} 61... Kg8 {[%clk 0:00:05.1]} 62.
Kg6 {[%clk 0:00:32.9]} 62... Kf8 {[%clk 0:00:05.6]} 63. f7 {[%clk 0:00:32.8]}
1-0

[Event "Late-Titled-Tuesday-Blitz-July-09-2024"]
[Site "Chess.com"]
[Date "2024.07.09"]
[Round "4"]
[White "RichardShtivelband"]
[Black "Antek_Radzimski"]
[Result "1-0"]
[WhiteElo "2388"]
[BlackElo "2558"]
[TimeControl "180+1"]
[EndTime "14:39:45 PDT"]
[Termination "RichardShtivelband won by resignation"]

1. d4 {[%clk 0:03:00]} 1... Nf6 {[%clk 0:02:59.6]} 2. c4 {[%clk 0:02:59.5]} 2...
e6 {[%clk 0:03:00.2]} 3. Nf3 {[%clk 0:02:59.5]} 3... Bb4+ {[%clk 0:03:00.5]} 4.
Nc3 {[%clk 0:02:58.4]} 4... O-O {[%clk 0:02:58.1]} 5. Bg5 {[%clk 0:02:56.6]}
5... h6 {[%clk 0:02:57.1]} 6. Bh4 {[%clk 0:02:56.3]} 6... b6 {[%clk 0:02:54.5]}
7. e3 {[%clk 0:02:55.1]} 7... Bb7 {[%clk 0:02:54.7]} 8. Bd3 {[%clk 0:02:55.2]}
8... d6 {[%clk 0:02:51.8]} 9. O-O {[%clk 0:02:54.7]} 9... Nbd7 {[%clk
0:02:52.4]} 10. Ne2 {[%clk 0:02:53.6]} 10... d5 {[%clk 0:02:47.7]} 11. Ne5
{[%clk 0:02:52]} 11... Be7 {[%clk 0:02:38.2]} 12. f4 {[%clk 0:02:48.5]} 12...
dxc4 {[%clk 0:02:37.4]} 13. Bxc4 {[%clk 0:02:47.8]} 13... c5 {[%clk 0:02:37.6]}
14. f5 {[%clk 0:02:42.4]} 14... exf5 {[%clk 0:02:13.2]} 15. Rxf5 {[%clk
0:02:40.8]} 15... Nxe5 {[%clk 0:02:12.6]} 16. dxe5 {[%clk 0:02:31.4]} 16... Ng4
{[%clk 0:02:05.4]} 17. Qxd8 {[%clk 0:02:13.1]} 17... Bxd8 {[%clk 0:02:06.3]} 18.
Bxd8 {[%clk 0:02:04.7]} 18... Raxd8 {[%clk 0:01:46.1]} 19. e6 {[%clk 0:02:04.2]}
19... Nxe3 {[%clk 0:01:36.9]} 20. Rxf7 {[%clk 0:01:50.8]} 20... Rxf7 {[%clk
0:01:07.3]} 21. exf7+ {[%clk 0:01:51.7]} 21... Kf8 {[%clk 0:01:08.2]} 22. Be6
{[%clk 0:01:40.2]} 22... Rd2 {[%clk 0:00:58.9]} 23. Nf4 {[%clk 0:01:33]} 23...
Be4 {[%clk 0:00:54.3]} 24. Re1 {[%clk 0:01:29.3]} 24... Nxg2 {[%clk 0:00:21.5]}
25. Rxe4 {[%clk 0:01:05.4]} 25... Nxf4 {[%clk 0:00:21.8]} 26. Bb3 {[%clk
0:01:02.4]} 26... Nd5 {[%clk 0:00:15.4]} 27. Re8+ {[%clk 0:00:54.2]} 27... Kxf7
{[%clk 0:00:15.3]} 28. Re5 {[%clk 0:00:54.2]} 28... Rxb2 {[%clk 0:00:13.6]} 29.
Rxd5 {[%clk 0:00:52.3]} 29... Kf6 {[%clk 0:00:12.4]} 30. Rd6+ {[%clk 0:00:45.3]}
30... Ke5 {[%clk 0:00:09.3]} 31. Rg6 {[%clk 0:00:42.8]} 31... Kd4 {[%clk
0:00:09.2]} 32. Rxg7 {[%clk 0:00:41.7]} 32... Re2 {[%clk 0:00:08.5]} 33. Rd7+
{[%clk 0:00:33]} 33... Kc3 {[%clk 0:00:08.1]} 34. Rc7 {[%clk 0:00:16.5]} 34...
a5 {[%clk 0:00:06.8]} 35. Rc6 {[%clk 0:00:15.6]} 35... b5 {[%clk 0:00:04.6]} 36.
Rxc5+ {[%clk 0:00:15.6]} 36... Kb4 {[%clk 0:00:05.3]} 37. Rh5 {[%clk 0:00:14.5]}
37... a4 {[%clk 0:00:05.7]} 38. Bg8 {[%clk 0:00:14]} 38... Re1+ {[%clk
0:00:02.8]} 39. Kg2 {[%clk 0:00:13.9]} 39... Re8 {[%clk 0:00:03.7]} 40. Bf7
{[%clk 0:00:12.6]} 40... Rh8 {[%clk 0:00:04.6]} 41. h4 {[%clk 0:00:11.5]} 41...
Ka3 {[%clk 0:00:04.2]} 42. Rxb5 {[%clk 0:00:11]} 42... Rf8 {[%clk 0:00:04.3]}
43. Rb7 {[%clk 0:00:10.3]} 43... h5 {[%clk 0:00:03.2]} 44. Kh3 {[%clk
0:00:10.1]} 44... Rd8 {[%clk 0:00:02]} 45. Kg3 {[%clk 0:00:09.8]} 45... Rd3+
{[%clk 0:00:02.4]} 46. Kf4 {[%clk 0:00:10]} 46... Rf3+ {[%clk 0:00:03]} 47. Kg5
{[%clk 0:00:10]} 47... Rf5+ {[%clk 0:00:02.6]} 48. Kh6 {[%clk 0:00:07.9]} 48...
Rf6+ {[%clk 0:00:03.2]} 49. Kg7 {[%clk 0:00:07.7]} 49... Rg6+ {[%clk 0:00:02.9]}
50. Bxg6 {[%clk 0:00:07.3]} 50... Kxa2 {[%clk 0:00:01.6]} 51. Bxh5 {[%clk
0:00:07.5]} 1-0

[Event "Late-Titled-Tuesday-Blitz-July-09-2024"]
[Site "Chess.com"]
[Date "2024.07.09"]
[Round "4"]
[White "alexrustemov"]
[Black "Narek_Ghimoyan"]
[Result "1/2-1/2"]
[WhiteElo "2880"]
[BlackElo "2508"]
[TimeControl "180+1"]
[EndTime "14:39:51 PDT"]
[Termination "Game drawn by repetition"]

1. d4 {[%clk 0:03:00.9]} 1... Nf6 {[%clk 0:03:00]} 2. c4 {[%clk 0:03:01.2]} 2...
e6 {[%clk 0:03:00]} 3. Nf3 {[%clk 0:03:01.5]} 3... b6 {[%clk 0:03:00.2]} 4. a3
{[%clk 0:03:01]} 4... Bb7 {[%clk 0:02:58.5]} 5. Nc3 {[%clk 0:03:01.2]} 5... d5
{[%clk 0:02:58.5]} 6. Bg5 {[%clk 0:03:01.2]} 6... Be7 {[%clk 0:02:58.3]} 7. Bxf6
{[%clk 0:03:01.7]} 7... Bxf6 {[%clk 0:02:59.2]} 8. cxd5 {[%clk 0:03:02.2]} 8...
exd5 {[%clk 0:02:59.8]} 9. Qa4+ {[%clk 0:03:02.6]} 9... c6 {[%clk 0:02:59.5]}
10. g3 {[%clk 0:03:02.6]} 10... O-O {[%clk 0:03:00]} 11. Rd1 {[%clk 0:03:01.9]}
11... Re8 {[%clk 0:02:53.8]} 12. Bg2 {[%clk 0:03:01.6]} 12... Nd7 {[%clk
0:02:50]} 13. O-O {[%clk 0:03:01.8]} 13... c5 {[%clk 0:02:44.6]} 14. e3 {[%clk
0:02:57.9]} 14... a6 {[%clk 0:02:41.9]} 15. dxc5 {[%clk 0:02:50]} 15... Nxc5
{[%clk 0:02:42.8]} 16. Qc2 {[%clk 0:02:47.2]} 16... Rc8 {[%clk 0:02:42.3]} 17.
Nd4 {[%clk 0:02:43.4]} 17... Ne4 {[%clk 0:02:34]} 18. Bxe4 {[%clk 0:02:38.8]}
18... dxe4 {[%clk 0:02:34.9]} 19. Nf5 {[%clk 0:02:34.9]} 19... Qc7 {[%clk
0:02:26.8]} 20. Nd6 {[%clk 0:02:34.9]} 20... h5 {[%clk 0:02:21.5]} 21. h4 {[%clk
0:02:24.1]} 21... Qe7 {[%clk 0:02:15.9]} 22. Qe2 {[%clk 0:02:12.1]} 22... g6
{[%clk 0:02:03.8]} 23. Rd2 {[%clk 0:02:03.8]} 23... Rc5 {[%clk 0:01:59]} 24.
Nxe8 {[%clk 0:02:03.3]} 24... Qxe8 {[%clk 0:01:59.9]} 25. Rfd1 {[%clk
0:02:00.1]} 25... Bc8 {[%clk 0:01:58.1]} 26. Nd5 {[%clk 0:01:52.5]} 26... Bd8
{[%clk 0:01:48.1]} 27. Nf4 {[%clk 0:01:41]} 27... Bf6 {[%clk 0:01:39]} 28. Qf1
{[%clk 0:01:27.2]} 28... Bg4 {[%clk 0:01:36.6]} 29. Rc1 {[%clk 0:01:26.3]} 29...
Rxc1 {[%clk 0:01:32.2]} 30. Qxc1 {[%clk 0:01:25.6]} 30... Bf3 {[%clk 0:01:31.9]}
31. Kh2 {[%clk 0:01:02.5]} 31... Qe5 {[%clk 0:01:22.2]} 32. Qc8+ {[%clk
0:00:47]} 32... Kg7 {[%clk 0:01:18.9]} 33. Qxa6 {[%clk 0:00:43.4]} 33... Qc5
{[%clk 0:01:16.5]} 34. Qf1 {[%clk 0:00:41.3]} 34... Be5 {[%clk 0:01:10]} 35. Rd5
{[%clk 0:00:35.6]} 35... Qc7 {[%clk 0:01:08.4]} 36. Rxe5 {[%clk 0:00:33.6]}
36... Qxe5 {[%clk 0:01:09.3]} 37. Qc1 {[%clk 0:00:33.6]} 37... Qb5 {[%clk
0:01:02.6]} 38. Kg1 {[%clk 0:00:26.1]} 38... Qa4 {[%clk 0:00:50.8]} 39. Qd2
{[%clk 0:00:22]} 39... Qb5 {[%clk 0:00:44.5]} 40. Qc3+ {[%clk 0:00:16.7]} 40...
Kh7 {[%clk 0:00:40.4]} 41. b3 {[%clk 0:00:17.1]} 41... Qd7 {[%clk 0:00:38.3]}
42. Qc1 {[%clk 0:00:16.6]} 42... f6 {[%clk 0:00:34.8]} 43. Kh2 {[%clk 0:00:14]}
43... Kh6 {[%clk 0:00:27]} 44. Nh3 {[%clk 0:00:13.7]} 44... Bg4 {[%clk
0:00:24.5]} 45. Ng1 {[%clk 0:00:14]} 45... Qd3 {[%clk 0:00:21.6]} 46. Qb2 {[%clk
0:00:10.9]} 46... Kg7 {[%clk 0:00:19.4]} 47. Kg2 {[%clk 0:00:10.9]} 47... Qd1
{[%clk 0:00:18.6]} 48. Qc3 {[%clk 0:00:03.2]} 48... Bf3+ {[%clk 0:00:18.2]} 49.
Kh2 {[%clk 0:00:03.4]} 49... Qf1 {[%clk 0:00:09.5]} 50. Qc7+ {[%clk 0:00:03.7]}
50... Kh6 {[%clk 0:00:04.4]} 51. Qf4+ {[%clk 0:00:03.6]} 51... Kg7 {[%clk
0:00:04.6]} 52. Qc7+ {[%clk 0:00:03.2]} 52... Kh6 {[%clk 0:00:04.4]} 53. Qf4+
{[%clk 0:00:02.9]} 53... Kg7 {[%clk 0:00:04.9]} 54. Qc7+ {[%clk 0:00:02.9]}
1/2-1/2

[Event "Late-Titled-Tuesday-Blitz-July-09-2024"]
[Site "Chess.com"]
[Date "2024.07.09"]
[Round "4"]
[White "Burgsvik"]
[Black "JoshWeinstein"]
[Result "0-1"]
[WhiteElo "2264"]
[BlackElo "2455"]
[TimeControl "180+1"]
[EndTime "14:39:51 PDT"]
[Termination "JoshWeinstein won by resignation"]

1. e4 {[%clk 0:03:00.9]} 1... d5 {[%clk 0:02:56.1]} 2. exd5 {[%clk 0:02:59.9]}
2... Qxd5 {[%clk 0:02:56.6]} 3. Nc3 {[%clk 0:03:00.1]} 3... Qa5 {[%clk 0:02:57]}
4. Bc4 {[%clk 0:02:59.6]} 4... Nf6 {[%clk 0:02:57.6]} 5. Nge2 {[%clk 0:02:57.1]}
5... Bg4 {[%clk 0:02:57.4]} 6. f3 {[%clk 0:02:56.4]} 6... Bh5 {[%clk 0:02:57.5]}
7. Nf4 {[%clk 0:02:51.1]} 7... Nc6 {[%clk 0:02:56]} 8. d3 {[%clk 0:02:45.8]}
8... O-O-O {[%clk 0:02:54.5]} 9. Bd2 {[%clk 0:02:45.1]} 9... Qc5 {[%clk
0:02:54.3]} 10. Nxh5 {[%clk 0:02:35.7]} 10... Nxh5 {[%clk 0:02:48.2]} 11. Ne4
{[%clk 0:02:33.7]} 11... Qb6 {[%clk 0:02:41.8]} 12. Bc3 {[%clk 0:02:27.2]} 12...
Nf4 {[%clk 0:02:25]} 13. Qd2 {[%clk 0:02:23.4]} 13... e5 {[%clk 0:02:19.9]} 14.
Bxf7 {[%clk 0:02:19.7]} 14... Bb4 {[%clk 0:02:00.5]} 15. g3 {[%clk 0:02:18.6]}
15... Ng6 {[%clk 0:01:51.5]} 16. a4 {[%clk 0:02:12.9]} 16... Nd4 {[%clk
0:01:33.7]} 17. Rf1 {[%clk 0:02:02.4]} 17... a5 {[%clk 0:01:13.2]} 18. O-O-O
{[%clk 0:01:40.9]} 18... Rdf8 {[%clk 0:01:06.7]} 19. Bxg6 {[%clk 0:01:37.7]}
19... hxg6 {[%clk 0:01:01.2]} 20. f4 {[%clk 0:01:37.8]} 20... Bxc3 {[%clk
0:00:55.9]} 21. Nxc3 {[%clk 0:01:33.9]} 21... exf4 {[%clk 0:00:49.1]} 22. gxf4
{[%clk 0:01:33.1]} 22... Qc6 {[%clk 0:00:34.7]} 23. Rf2 {[%clk 0:01:28]} 23...
Rh4 {[%clk 0:00:25.6]} 24. Rdf1 {[%clk 0:01:26.3]} 24... Rfh8 {[%clk 0:00:25.6]}
25. Kb1 {[%clk 0:01:18.5]} 25... Nf5 {[%clk 0:00:25.2]} 26. Nb5 {[%clk 0:01:15]}
26... Qc5 {[%clk 0:00:22.9]} 27. Qxa5 {[%clk 0:01:10.1]} 27... Kb8 {[%clk
0:00:23.2]} 28. Qc3 {[%clk 0:01:05.5]} 28... Qxc3 {[%clk 0:00:22]} 29. Nxc3
{[%clk 0:01:05]} 29... Rxh2 {[%clk 0:00:22.6]} 30. Rxh2 {[%clk 0:01:04.3]} 30...
Rxh2 {[%clk 0:00:23.5]} 31. Nd5 {[%clk 0:01:02.3]} 31... c6 {[%clk 0:00:21.4]}
32. Nb6 {[%clk 0:01:00.8]} 32... Kc7 {[%clk 0:00:22]} 33. a5 {[%clk 0:01:00.7]}
33... Rh4 {[%clk 0:00:20.9]} 34. c3 {[%clk 0:00:58.6]} 34... Ng3 {[%clk
0:00:20.2]} 35. Rf3 {[%clk 0:00:58]} 35... Ne2 {[%clk 0:00:19]} 36. Ka2 {[%clk
0:00:55.5]} 36... Nxf4 {[%clk 0:00:19.6]} 37. Kb3 {[%clk 0:00:53.3]} 37... g5
{[%clk 0:00:19.8]} 38. Nc4 {[%clk 0:00:52.7]} 38... Kd7 {[%clk 0:00:18.6]} 39.
Ne5+ {[%clk 0:00:51.7]} 39... Ke6 {[%clk 0:00:18.8]} 40. d4 {[%clk 0:00:52.2]}
40... Nd5 {[%clk 0:00:19]} 41. Ng6 {[%clk 0:00:51]} 41... Rh6 {[%clk 0:00:18.8]}
42. Nh4 {[%clk 0:00:51.9]} 42... Rxh4 {[%clk 0:00:19.1]} 43. Rf8 {[%clk
0:00:50.9]} 43... Rf4 {[%clk 0:00:19.7]} 44. Re8+ {[%clk 0:00:50.3]} 44... Kd6
{[%clk 0:00:19.2]} 45. Rb8 {[%clk 0:00:49.7]} 45... Kc7 {[%clk 0:00:19.7]} 46.
Rg8 {[%clk 0:00:49.6]} 46... Rf7 {[%clk 0:00:19.8]} 47. c4 {[%clk 0:00:49.3]}
47... Ne3 {[%clk 0:00:19.7]} 48. Rh8 {[%clk 0:00:46]} 48... g4 {[%clk
0:00:20.2]} 49. Kb4 {[%clk 0:00:42.7]} 49... g3 {[%clk 0:00:20.7]} 50. Rh3
{[%clk 0:00:41.6]} 50... g2 {[%clk 0:00:21.5]} 51. Rg3 {[%clk 0:00:41.6]} 51...
g5 {[%clk 0:00:16.7]} 52. Rxg5 {[%clk 0:00:39.9]} 52... Rf2 {[%clk 0:00:16.3]}
53. Rg7+ {[%clk 0:00:39.8]} 53... Kd6 {[%clk 0:00:16.2]} 54. Rg6+ {[%clk
0:00:34.6]} 54... Ke7 {[%clk 0:00:16.4]} 55. Kc5 {[%clk 0:00:33.3]} 55... Kf7
{[%clk 0:00:17]} 56. Rg3 {[%clk 0:00:32.5]} 56... Rxb2 {[%clk 0:00:17]} 57. a6
{[%clk 0:00:27]} 57... bxa6 {[%clk 0:00:16.7]} 58. Kxc6 {[%clk 0:00:27.3]} 58...
Kf6 {[%clk 0:00:16.7]} 59. d5 {[%clk 0:00:26.3]} 59... Ke5 {[%clk 0:00:17]} 60.
d6 {[%clk 0:00:26]} 60... Nxc4 {[%clk 0:00:17]} 61. d7 {[%clk 0:00:24.8]} 61...
Na5+ {[%clk 0:00:17.1]} 62. Kc7 {[%clk 0:00:24.4]} 62... Rc2+ {[%clk 0:00:17]}
63. Kb8 {[%clk 0:00:24.5]} 63... Kf4 {[%clk 0:00:15.3]} 64. d8=Q {[%clk
0:00:21.5]} 64... Nc6+ {[%clk 0:00:15.1]} 65. Kb7 {[%clk 0:00:20.4]} 65... Nxd8+
{[%clk 0:00:15.8]} 66. Kxa6 {[%clk 0:00:18.8]} 66... Kxg3 {[%clk 0:00:16.7]} 67.
Kb6 {[%clk 0:00:18.3]} 67... g1=Q+ {[%clk 0:00:16.9]} 68. Kb5 {[%clk 0:00:19.2]}
68... Qb1+ {[%clk 0:00:17.3]} 0-1

[Event "Late-Titled-Tuesday-Blitz-July-09-2024"]
[Site "Chess.com"]
[Date "2024.07.09"]
[Round "4"]
[White "Flawless_Fighter"]
[Black "NovoselovRoman"]
[Result "0-1"]
[WhiteElo "2757"]
[BlackElo "2574"]
[TimeControl "180+1"]
[EndTime "14:39:54 PDT"]
[Termination "NovoselovRoman won by resignation"]

1. Nf3 {[%clk 0:03:00.9]} 1... Nf6 {[%clk 0:02:59.5]} 2. g3 {[%clk 0:03:00.6]}
2... d5 {[%clk 0:03:00]} 3. Bg2 {[%clk 0:03:00.6]} 3... e6 {[%clk 0:03:00.6]} 4.
O-O {[%clk 0:03:00.7]} 4... Be7 {[%clk 0:03:01.1]} 5. d4 {[%clk 0:03:00.5]} 5...
O-O {[%clk 0:03:01.4]} 6. Nbd2 {[%clk 0:02:59.1]} 6... c5 {[%clk 0:03:00.5]} 7.
c3 {[%clk 0:02:56]} 7... Nc6 {[%clk 0:02:59.3]} 8. e3 {[%clk 0:02:51.7]} 8... b6
{[%clk 0:02:59.3]} 9. b3 {[%clk 0:02:48.9]} 9... cxd4 {[%clk 0:02:57.9]} 10.
exd4 {[%clk 0:02:43.2]} 10... Bb7 {[%clk 0:02:58.8]} 11. Bb2 {[%clk 0:02:42.6]}
11... Rc8 {[%clk 0:02:58.4]} 12. Re1 {[%clk 0:02:41.9]} 12... h6 {[%clk
0:02:42.2]} 13. Rc1 {[%clk 0:02:40.2]} 13... Nh7 {[%clk 0:02:39.9]} 14. h4
{[%clk 0:02:39.2]} 14... Re8 {[%clk 0:02:38.4]} 15. c4 {[%clk 0:02:33.9]} 15...
Bf6 {[%clk 0:02:37.6]} 16. Ne5 {[%clk 0:02:29.4]} 16... Bxe5 {[%clk 0:02:25.8]}
17. dxe5 {[%clk 0:02:28.2]} 17... Nf8 {[%clk 0:02:22.7]} 18. cxd5 {[%clk
0:02:23]} 18... exd5 {[%clk 0:02:23.6]} 19. Nf1 {[%clk 0:02:19.9]} 19... Ne7
{[%clk 0:02:14.1]} 20. Rxc8 {[%clk 0:02:16.6]} 20... Qxc8 {[%clk 0:02:15]} 21.
Ne3 {[%clk 0:02:13.6]} 21... Rd8 {[%clk 0:02:14.7]} 22. Qd3 {[%clk 0:01:49.6]}
22... d4 {[%clk 0:02:02.9]} 23. Nc4 {[%clk 0:01:44.7]} 23... Ba6 {[%clk
0:01:59.8]} 24. Rc1 {[%clk 0:01:34.5]} 24... Ne6 {[%clk 0:01:58.1]} 25. Qd2
{[%clk 0:01:19.8]} 25... Bxc4 {[%clk 0:01:52.3]} 26. Rxc4 {[%clk 0:01:20.7]}
26... Qb8 {[%clk 0:01:48.5]} 27. f4 {[%clk 0:01:19.9]} 27... Nf5 {[%clk
0:01:48.1]} 28. Kh2 {[%clk 0:01:19.5]} 28... Ne3 {[%clk 0:01:48.2]} 29. Rc1
{[%clk 0:01:18.3]} 29... Nxg2 {[%clk 0:01:48.4]} 30. Qxg2 {[%clk 0:01:18]} 30...
h5 {[%clk 0:01:44.8]} 31. Rd1 {[%clk 0:01:16.7]} 31... g6 {[%clk 0:01:43.9]} 32.
Qf3 {[%clk 0:01:14.7]} 32... Qa8 {[%clk 0:01:38.4]} 33. Kg2 {[%clk 0:01:11.2]}
33... Qc8 {[%clk 0:01:14.6]} 34. Rd2 {[%clk 0:01:07]} 34... Qc5 {[%clk
0:01:12.2]} 35. f5 {[%clk 0:01:04.3]} 35... Ng7 {[%clk 0:01:08.2]} 36. fxg6
{[%clk 0:00:58]} 36... fxg6 {[%clk 0:01:09.1]} 37. Qe4 {[%clk 0:00:52.1]} 37...
Nf5 {[%clk 0:01:07.7]} 38. e6 {[%clk 0:00:51.4]} 38... Qd5 {[%clk 0:00:54.6]}
39. Qxd5 {[%clk 0:00:51.4]} 39... Rxd5 {[%clk 0:00:55.2]} 40. Kf3 {[%clk
0:00:51.7]} 40... Re5 {[%clk 0:00:53.2]} 41. Bxd4 {[%clk 0:00:49]} 41... Rxe6
{[%clk 0:00:53]} 42. Bb2 {[%clk 0:00:40.2]} 42... Kf7 {[%clk 0:00:51.1]} 43.
Rd7+ {[%clk 0:00:38.3]} 43... Re7 {[%clk 0:00:51.6]} 44. Rd3 {[%clk 0:00:37.5]}
44... Rc7 {[%clk 0:00:51.3]} 45. Be5 {[%clk 0:00:35.7]} 45... Rc2 {[%clk
0:00:50.6]} 46. a4 {[%clk 0:00:34.6]} 46... Ke6 {[%clk 0:00:49.6]} 47. Bf4
{[%clk 0:00:34.8]} 47... Rb2 {[%clk 0:00:49.9]} 48. Ke4 {[%clk 0:00:31.8]} 48...
Re2+ {[%clk 0:00:48.6]} 49. Kf3 {[%clk 0:00:32]} 49... Rb2 {[%clk 0:00:48.5]}
50. Bb8 {[%clk 0:00:28.4]} 50... a6 {[%clk 0:00:47.8]} 51. Bc7 {[%clk
0:00:23.8]} 51... b5 {[%clk 0:00:48]} 52. axb5 {[%clk 0:00:17.7]} 52... axb5
{[%clk 0:00:48.9]} 53. Bf4 {[%clk 0:00:18.3]} 53... Rc2 {[%clk 0:00:48.1]} 54.
Bg5 {[%clk 0:00:13.6]} 54... Rb2 {[%clk 0:00:48.4]} 55. Bf4 {[%clk 0:00:13.4]}
55... Rxb3 {[%clk 0:00:48.8]} 56. Rxb3 {[%clk 0:00:12]} 56... Nd4+ {[%clk
0:00:49.5]} 57. Ke4 {[%clk 0:00:12.1]} 57... Nxb3 {[%clk 0:00:50.4]} 58. Be3
{[%clk 0:00:10.8]} 58... Na5 {[%clk 0:00:49.8]} 59. Kd4 {[%clk 0:00:09]} 59...
Kf5 {[%clk 0:00:44.1]} 60. Kc5 {[%clk 0:00:08.2]} 60... Nc4 {[%clk 0:00:43.7]}
61. Bf4 {[%clk 0:00:07.6]} 61... Nb2 {[%clk 0:00:42.3]} 62. Kxb5 {[%clk
0:00:07.6]} 62... Nd3 {[%clk 0:00:42.9]} 63. Bd6 {[%clk 0:00:08.1]} 63... Kg4
{[%clk 0:00:42.4]} 64. Kc4 {[%clk 0:00:08.5]} 64... Nc1 {[%clk 0:00:42.2]} 65.
Kd5 {[%clk 0:00:06.7]} 65... Ne2 {[%clk 0:00:42.2]} 66. Ke6 {[%clk 0:00:06.1]}
66... Nxg3 {[%clk 0:00:42.3]} 67. Kf6 {[%clk 0:00:06.5]} 67... Ne4+ {[%clk
0:00:40.5]} 68. Ke5 {[%clk 0:00:04.3]} 68... Nxd6 {[%clk 0:00:41.4]} 0-1